fUSD/lending_fUSD_20240125
["ID","MTS","AMOUNT","RATE_DAILY","PERIOD"]
[312661620,1706141477487,-737.72,0.00049863,31]
[312661621,1706141477497,-500.55,0.00049863,31]
[312661622,1706141477506,-500.0,0.00049863,31]
[312661623,1706141477516,-847.8,0.00049863,31]
[312661624,1706141477525,-500.0,0.00049863,31]
[312661625,1706141477534,-539.53,0.00049863,31]
[312661626,1706141477544,-501.79,0.00049863,31]
[312661627,1706141477554,-500.0,0.00049863,31]
[312661628,1706141477563,-714.81,0.00049863,31]
[312661629,1706141477572,-560.58,0.00049863,31]
[312661630,1706141477581,-765.11,0.00049863,31]
[312661631,1706141477590,-500.0,0.00049863,31]
[312661632,1706141477599,-5000.0,0.00049863,14]
[312661633,1706141477608,-500.0,0.00049863,31]
[312661634,1706141477617,-500.0,0.00049863,31]
[312661635,1706141477626,-500.0,0.00049863,31]
[312661636,1706141477635,-1451.54,0.00049863,31]
[312661637,1706141477644,-764.66,0.00049863,31]
[312661638,1706141477653,-673.27,0.00049863,31]
[312661639,1706141477662,-1105.43,0.00049863,31]
[312661640,1706141477671,-500.0,0.00049863,31]
[312661641,1706141477680,-3144.18,0.00049863,31]
[312661642,1706141477689,-500.0,0.00049863,31]
[312661643,1706141477698,-500.0,0.00049863,31]
[312661644,1706141477707,-500.0,0.00049863,31]
[312661645,1706141477716,-500.0,0.00049863,31]
[312661646,1706141477725,-748.16,0.00049863,31]
[312661647,1706141477733,-678.69,0.00049863,31]
[312661648,1706141477743,-500.0,0.00049863,120]
[312661649,1706141477752,-500.0,0.00049863,31]
[312661650,1706141477762,-548.31,0.00049863,31]
[312661651,1706141477771,-532.81,0.00049863,31]
[312661652,1706141477780,-500.0,0.00049863,31]
[312661653,1706141477790,-515.5,0.00049863,31]
[312661654,1706141477799,-792.67,0.00049863,31]
[312661655,1706141477809,-500.0,0.00049863,31]
[312661656,1706141477818,-500.0,0.00049863,31]
[312661657,1706141477828,-1247.69,0.00049863,31]
[312661658,1706141477837,-612.72,0.00049863,31]
[312661659,1706141477845,-500.0,0.00049863,31]
[312661660,1706141477855,-1295.4,0.00049863,31]
[312661661,1706141477864,-820.44,0.00049863,31]
[312661662,1706141477874,-500.0,0.00049863,31]
[312661663,1706141477883,-939.98,0.00049863,31]
[312661664,1706141477892,-689.9,0.00049863,31]
[312661665,1706141477902,-500.0,0.00049863,31]
[312661666,1706141477911,-500.0,0.00049863,31]
[312661667,1706141477920,-650.74,0.00049863,31]
[312661668,1706141477929,-3710.41,0.00049863,31]
[312661669,1706141477938,-594.93,0.00049863,2]
[312661670,1706141477947,-500.0,0.00049863,31]
[312661671,1706141477957,-646.07,0.00049863,31]
[312661672,1706141477966,-500.0,0.00049863,31]
[312661673,1706141477976,-500.0,0.00049863,31]
[312661674,1706141477986,-500.0,0.00049863,31]
[312661675,1706141477995,-2728.94,0.00049863,31]
[312661676,1706141478005,-500.0,0.00049863,31]
[312661677,1706141478014,-500.0,0.00049863,31]
[312661678,1706141478023,-1281.32,0.00049863,31]
[312661679,1706141478032,-1822.59,0.00049863,2]
[312661680,1706141478042,-500.0,0.00049863,31]
[312661681,1706141478051,-500.0,0.00049863,31]
[312661682,1706141478060,-500.0,0.00049863,31]
[312661683,1706141478069,-500.0,0.00049863,31]
[312661684,1706141478079,-500.0,0.00049863,31]
[312661685,1706141478088,-500.0,0.00049863,31]
[312661686,1706141478097,-1129.79,0.00049863,31]
[312661687,1706141478106,-724.18,0.00049863,31]
[312661688,1706141478115,-441.40330595,0.00049863,31]
[312661689,1706141478125,-605.74,0.00049863,31]
[312661690,1706141478134,-500.0,0.00049863,31]
[312661691,1706141478144,-500.0,0.00049863,31]
[312661692,1706141478154,-500.0,0.00049863,31]
[312661693,1706141478163,-824.96,0.00049863,31]
[312661694,1706141478172,-887.42,0.00049863,31]
[312661695,1706141478181,-500.0,0.00049863,31]
[312661696,1706141478190,-500.0,0.00049863,31]
[312661697,1706141478200,-500.0,0.00049863,31]
[312661698,1706141478210,-866.53,0.00049863,31]
[312661699,1706141478219,-510.96,0.00049863,31]
[312661700,1706141478229,-757.86,0.00049863,2]
[312661701,1706141478238,-248.47554792,0.00049863,31]
[312661702,1706141478248,-500.0,0.00049863,31]
[312661703,1706141478258,-344.40185471,0.00049863,31]
[312661704,1706141478268,-500.0,0.00049863,31]
[312661705,1706141478278,-500.0,0.00049863,31]
[312661706,1706141478287,-887.79,0.00049863,31]
[312661707,1706141478301,-566.99,0.00049863,31]
[312661708,1706141478311,-500.0,0.00049863,31]
[312661709,1706141478321,-1463.20744382,0.00049879,30]
[312661710,1706141478330,-153.21386404,0.00049884,30]
[312661711,1706141478340,-647.69,0.0004989,120]
[312661712,1706141478350,-452.49609033,0.00049897,30]
[312661713,1706141478360,-150.37716717,0.000499,30]
[312661714,1706141478371,-700.0,0.000499,18]
[312661715,1706141478380,-400.0,0.000499,18]
[312661716,1706141478390,-200.0,0.000499,18]
[312661717,1706141478400,-153.21386404,0.00049911,30]
[312661718,1706141478409,-153.95702124,0.00049981,30]
[312661719,1706141478418,-6602.0,0.0004999,2]
[312661720,1706141478429,-6026.0,0.0004999,2]
[312661721,1706141478438,-3969.66937994,0.00049997,2]
[312661722,1706141478447,-100000.0,0.0005,40]
[312661723,1706141478457,-4000.0,0.0005,120]
[312661724,1706141478466,-4000.0,0.0005,120]
[312661725,1706141478476,-4000.0,0.0005,120]
[312661726,1706141478485,-4000.0,0.0005,120]
[312661727,1706141478495,-4000.0,0.0005,120]
[312661728,1706141478504,-3955.8197,0.0005,120]
[312661729,1706141478514,-1878.24779766,0.0005,120]
[312661730,1706141478524,-1079.83014803,0.0005,2]
[312661731,1706141478533,-275.02275198,0.0005,4]
[312661732,1706141478543,-155.46559937,0.0005,2]
[312661733,1706141478554,-6857.62294565,0.0005,4]
[312661734,1706141478563,-404.54803196,0.0005,4]
[312661735,1706141478572,-2954.05592216,0.0005,4]
[312661736,1706141478582,-2000.0,0.0005,60]
[312661737,1706141478591,-2000.0,0.0005,60]
[312661738,1706141478601,-4000.0,0.0005,120]
[312661739,1706141478610,-2000.0,0.0005,60]
[312661740,1706141478620,-3000.0,0.0005,120]
[312661741,1706141478629,-2000.0,0.0005,60]
[312661742,1706141478638,-2000.0,0.0005,60]
[312661743,1706141478648,-2000.0,0.0005,60]
[312661744,1706141478658,-155.0,0.0005,2]
[312661745,1706141478667,-4000.0,0.0005,120]
[312661746,1706141478676,-500.0,0.0005,120]
[312661747,1706141478685,-200.35208289,0.0005,2]
[312661748,1706141478695,-1000.0,0.0005,22]
[312661749,1706141478704,-1000.0,0.0005,22]
[312661750,1706141478713,-503.03,0.0005,14]
[312661751,1706141478723,-500.0,0.0005,7]
[312661752,1706141478732,-500.0,0.0005,7]
[312661753,1706141478741,-692902.27373356,0.0005,2]
[312661754,1706141478751,-40774.19150283,0.0005,2]
[312661755,1706141478761,-600.0,0.0005,51]
[312661756,1706141478770,-1235.70253026,0.0005,120]
[312661757,1706141478779,-9996.0,0.0005,120]
[312661758,1706141478792,-11785.456265,0.0005,2]
[312661759,1706141478802,-16443.94614998,0.0005,3]
[312661760,1706141478813,-1587.32403862,0.0005,120]
[312661761,1706141478823,-163.3484955,0.0005,2]
[312661762,1706141478832,-53829.0,0.0005,17]
[312661763,1706141478842,-150.0,0.0005,2]
[312661764,1706141478852,-300.0,0.0005,27]
[312661765,1706141478862,-200.0,0.0005,27]
[312661766,1706141478871,-5962.48725494,0.0005,30]
[312661767,1706141478880,-33736.0,0.0005,120]
[312661768,1706141478890,-22491.31200944,0.0005,2]
[312661769,1706141478899,-207.0,0.0005,30]
[312661770,1706141478909,-7455.0,0.0005,30]
[312661771,1706141478919,-574.0,0.0005,60]
[312661772,1706141478928,-625.59429668,0.0005,60]
[312661773,1706141478937,-656.63812099,0.0005,60]
[312661774,1706141478947,-150.0,0.0005,27]
[312661775,1706141478957,-162.27493029,0.00050003,60]
[312661776,1706141478967,-150.15277208,0.00050011,60]
[312661777,1706141478976,-162.27493029,0.00050062,60]
[312661778,1706141478986,-174.00895376,0.00050067,60]
[312661779,1706141478996,-155.25098285,0.00050069,60]
[312661780,1706141479005,-432.40353136,0.00050084,60]
[312661781,1706141479015,-300.0,0.0005009,2]
[312661782,1706141479025,-3969.66937994,0.00050133,2]
[312661783,1706141479034,-383.81392376,0.00050136,30]
[312661784,1706141479043,-576.92519857,0.00050136,60]
[312661785,1706141479054,-500.0,0.00050136,31]
[312661786,1706141479064,-500.0,0.00050136,31]
[312661787,1706141479073,-500.0,0.00050136,31]
[312661788,1706141479082,-500.0,0.00050136,31]
[312661789,1706141479091,-500.0,0.00050136,31]
[312661790,1706141479101,-500.0,0.00050136,31]
[312661791,1706141479110,-500.0,0.00050136,31]
[312661792,1706141479120,-500.0,0.00050136,31]
[312661793,1706141479129,-571.87,0.00050136,31]
[312661794,1706141479138,-500.0,0.00050136,31]
[312661795,1706141479147,-500.0,0.00050136,31]
[312661796,1706141479157,-622.73201608,0.00050136,31]
[312661797,1706141479166,-500.0,0.00050136,31]
[312661798,1706141479176,-500.0,0.00050136,31]
[312661799,1706141479185,-500.0,0.00050136,31]
[312661800,1706141479195,-500.0,0.00050136,31]
[312661801,1706141479204,-500.0,0.00050136,31]
[312661802,1706141479213,-500.0,0.00050136,31]
[312661803,1706141479223,-500.0,0.00050136,31]
[312661804,1706141479232,-500.0,0.00050136,31]
[312661805,1706141479242,-500.0,0.00050136,31]
[312661806,1706141479251,-500.0,0.00050136,31]
[312661807,1706141479261,-500.0,0.00050136,31]
[312661808,1706141479272,-500.0,0.00050136,31]
[312661809,1706141479282,-500.0,0.00050136,31]
[312661810,1706141479292,-500.0,0.00050136,31]
[312661811,1706141479301,-239.35994803,0.00050136,31]
[312661812,1706141479313,-500.0,0.00050136,31]
[312661813,1706141479323,-500.0,0.00050136,31]
[312661814,1706141479332,-500.0,0.00050136,31]
[312661815,1706141479342,-500.0,0.00050136,31]
[312661816,1706141479351,-500.0,0.00050136,31]
[312661817,1706141479361,-250.0,0.00050136,31]
[312661818,1706141479371,-500.0,0.00050136,31]
[312661819,1706141479380,-500.0,0.00050136,31]
[312661820,1706141479390,-500.0,0.00050136,31]
[312661821,1706141479399,-175.23445696,0.00050136,31]
[312661822,1706141479409,-500.0,0.00050136,31]
[312661823,1706141479418,-500.0,0.00050136,31]
[312661824,1706141479428,-500.0,0.00050136,31]
[312661825,1706141479437,-500.0,0.00050136,31]
[312661826,1706141479447,-500.0,0.00050136,31]
[312661827,1706141479457,-500.0,0.00050136,31]
[312661828,1706141479468,-500.0,0.00050136,31]
[312661829,1706141479477,-500.0,0.00050136,31]
[312661830,1706141479487,-500.0,0.00050136,31]
[312661831,1706141479497,-569.3,0.00050136,31]
[312661832,1706141479507,-547.01,0.00050136,31]
[312661833,1706141479516,-500.0,0.00050136,30]
[312661834,1706141479526,-500.0,0.00050136,31]
[312661835,1706141479535,-500.0,0.00050136,31]
[312661836,1706141479545,-500.0,0.00050136,31]
[312661837,1706141479555,-500.0,0.00050136,31]
[312661838,1706141479565,-500.0,0.00050136,31]
[312661839,1706141479575,-510.64,0.00050136,31]
[312661840,1706141479584,-500.0,0.00050136,31]
[312661841,1706141479594,-1000.0,0.00050136,7]
[312661842,1706141479604,-500.0,0.00050136,10]
[312661843,1706141479614,-500.0,0.00050136,31]
[312661844,1706141479623,-500.0,0.00050136,31]
[312661845,1706141479633,-500.0,0.00050136,31]
[312661846,1706141479642,-500.0,0.00050136,31]
[312661847,1706141479651,-500.0,0.00050136,31]
[312661848,1706141479661,-500.0,0.00050136,31]
[312661849,1706141479671,-500.0,0.00050136,31]
[312661850,1706141479681,-500.0,0.00050136,31]
[312661851,1706141479690,-500.0,0.00050136,31]
[312661852,1706141479699,-754.82,0.00050136,31]
[312661853,1706141479709,-500.0,0.00050136,31]
[312661854,1706141479718,-500.0,0.00050136,31]
[312661855,1706141479727,-500.0,0.00050136,31]
[312661856,1706141479736,-917.61,0.00050136,31]
[312661857,1706141479746,-500.0,0.00050136,2]
[312661858,1706141479756,-500.0,0.00050136,31]
[312661859,1706141479766,-500.0,0.00050136,31]
[312661860,1706141479775,-500.0,0.00050136,31]
[312661861,1706141479785,-500.0,0.00050136,31]
[312661862,1706141479794,-665.93,0.00050136,31]
[312661863,1706141479805,-702.69,0.00050136,31]
[312661864,1706141479815,-500.0,0.00050136,31]
[312661865,1706141479824,-500.0,0.00050136,31]
[312661866,1706141479834,-500.0,0.00050136,31]
[312661867,1706141479843,-619.19,0.00050136,31]
[312661868,1706141479853,-953.39,0.00050136,31]
[312661869,1706141479863,-500.0,0.00050136,2]
[312661870,1706141479872,-500.0,0.00050136,31]
[312661871,1706141479882,-500.0,0.00050136,31]
[312661872,1706141479891,-500.0,0.00050136,31]
[312661873,1706141479901,-500.0,0.00050136,31]
[312661874,1706141479911,-500.0,0.00050136,31]
[312661875,1706141479920,-500.0,0.00050136,31]
[312661876,1706141479930,-500.0,0.00050136,31]
[312661877,1706141479940,-500.0,0.00050136,31]
[312661878,1706141479950,-500.0,0.00050136,31]
[312661879,1706141479959,-500.0,0.00050136,31]
[312661880,1706141479969,-500.0,0.00050136,31]
[312661881,1706141479979,-500.0,0.00050136,31]
[312661882,1706141479990,-523.13,0.00050136,31]
[312661883,1706141480000,-500.0,0.00050136,31]
[312661884,1706141480010,-500.0,0.00050136,31]
[312661885,1706141480021,-500.0,0.00050136,31]
[312661886,1706141480040,-500.0,0.00050136,31]
[312661887,1706141480055,-500.0,0.00050136,31]
[312661888,1706141480067,-500.0,0.00050136,31]
[312661889,1706141480078,-585.92640791,0.00050136,31]
[312661890,1706141480090,-500.0,0.00050136,31]
[312661891,1706141480100,-500.0,0.00050136,31]
[312661892,1706141480111,-539.3,0.00050136,31]
[312661893,1706141480122,-500.0,0.00050136,31]
[312661894,1706141480134,-500.0,0.00050136,31]
[312661895,1706141480145,-500.0,0.00050136,31]
[312661896,1706141480156,-500.0,0.00050136,31]
[312661897,1706141480167,-500.0,0.00050136,31]
[312661898,1706141480179,-500.0,0.00050136,31]
[312661899,1706141480190,-500.0,0.00050136,31]
[312661900,1706141480201,-500.0,0.00050136,31]
[312661901,1706141480212,-557.24,0.00050136,31]
[312661902,1706141480223,-500.0,0.00050136,31]
[312661903,1706141480234,-500.0,0.00050136,31]
[312661904,1706141480245,-500.0,0.00050136,31]
[312661905,1706141480256,-500.0,0.00050136,31]
[312661906,1706141480267,-500.0,0.00050136,31]
[312661907,1706141480525,-280.12966219,0.00050136,31]
[312661908,1706141480536,-500.0,0.00050136,31]
[312661909,1706141480546,-500.0,0.00050136,31]
[312661910,1706141480558,-500.0,0.00050136,31]
[312661911,1706141480568,-500.0,0.00050136,31]
[312661912,1706141480578,-500.0,0.00050136,31]
[312661913,1706141480589,-500.0,0.00050136,31]
[312661914,1706141480599,-500.0,0.00050136,31]
[312661915,1706141480608,-596.67,0.00050136,31]
[312661916,1706141480618,-500.0,0.00050136,31]
[312661917,1706141480628,-500.0,0.00050136,31]
[312661918,1706141480638,-500.0,0.00050136,31]
[312661919,1706141480649,-500.0,0.00050136,31]
[312661920,1706141480660,-500.0,0.00050136,31]
[312661921,1706141480672,-500.0,0.00050136,31]
[312661922,1706141480682,-500.0,0.00050136,10]
[312661923,1706141480692,-500.0,0.00050136,31]
[312661924,1706141480702,-500.0,0.00050136,31]
[312661925,1706141480713,-650.62,0.00050136,31]
[312661926,1706141480722,-530.57,0.00050136,31]
[312661927,1706141480733,-590.77,0.00050136,31]
[312661928,1706141480742,-516.45638667,0.00050136,31]
[312661929,1706141480752,-500.0,0.00050136,31]
[312661930,1706141480761,-500.0,0.00050136,31]
[312661931,1706141480771,-500.0,0.00050136,31]
[312661932,1706141480782,-500.0,0.00050136,31]
[312661933,1706141480793,-500.0,0.00050136,31]
[312661934,1706141480804,-250.18947219,0.00050136,31]
[312661935,1706141480817,-529.72,0.00050136,31]
[312661936,1706141480827,-500.0,0.00050136,31]
[312661937,1706141480838,-500.0,0.00050136,31]
[312661938,1706141480849,-537.66,0.00050136,31]
[312661939,1706141480859,-500.0,0.00050136,31]
[312661940,1706141480870,-500.0,0.00050136,31]
[312661941,1706141480880,-668.66,0.00050136,31]
[312661942,1706141480890,-500.0,0.00050136,31]
[312661943,1706141480900,-500.0,0.00050136,31]
[312661944,1706141480910,-500.0,0.00050136,31]
[312661945,1706141480920,-500.0,0.00050136,31]
[312661946,1706141480931,-992.14,0.00050136,120]
[312661947,1706141480941,-500.0,0.00050136,31]
[312661948,1706141480951,-500.0,0.00050136,31]
[312661949,1706141480962,-500.0,0.00050136,31]
[312661950,1706141480973,-502.97,0.00050136,31]
[312661951,1706141480994,-500.0,0.00050136,31]
[312661952,1706141481007,-500.0,0.00050136,31]
[312661953,1706141481018,-500.0,0.00050136,31]
[312661954,1706141481029,-500.0,0.00050136,31]
[312661955,1706141481039,-500.0,0.00050136,31]
[312661956,1706141481048,-500.0,0.00050136,31]
[312661957,1706141481061,-500.0,0.00050136,31]
[312661958,1706141481070,-500.0,0.00050136,31]
[312661959,1706141481080,-500.0,0.00050136,31]
[312661960,1706141481090,-500.0,0.00050136,31]
[312661961,1706141481099,-500.0,0.00050136,31]
[312661962,1706141481109,-500.0,0.00050136,31]
[312661963,1706141481119,-626.76,0.00050136,31]
[312661964,1706141481129,-500.0,0.00050136,31]
[312661965,1706141481139,-524.2,0.00050136,31]
[312661966,1706141481149,-500.0,0.00050136,31]
[312661967,1706141481159,-500.0,0.00050136,31]
[312661968,1706141481169,-500.0,0.00050136,31]
[312661969,1706141481178,-532.21353331,0.00050136,31]
[312661970,1706141481188,-500.0,0.00050136,31]
[312661971,1706141481198,-500.0,0.00050136,31]
[312661972,1706141481207,-500.0,0.00050136,31]
[312661973,1706141481217,-349.47725563,0.00050136,31]
[312661974,1706141481226,-697.72,0.00050136,2]
[312661975,1706141481235,-500.0,0.00050136,31]
[312661976,1706141481245,-500.0,0.00050136,31]
[312661977,1706141481255,-500.0,0.00050136,31]
[312661978,1706141481265,-624.31901228,0.00050136,31]
[312661979,1706141481278,-500.0,0.00050136,31]
[312661980,1706141481288,-316.5867107,0.00050136,31]
[312661981,1706141481297,-500.0,0.00050136,31]
[312661982,1706141481307,-296.75486082,0.00050136,31]
[312661983,1706141481319,-502.99,0.00050136,31]
[312661984,1706141481328,-500.0,0.00050136,31]
[312661985,1706141481338,-500.0,0.00050136,31]
[312661986,1706141481348,-500.0,0.00050136,31]
[312661987,1706141481359,-500.0,0.00050136,31]
[312661988,1706141481368,-500.0,0.00050136,31]
[312661989,1706141481377,-500.0,0.00050136,31]
[312661990,1706141481387,-527.47773332,0.00050136,31]
[312661991,1706141481397,-500.0,0.00050136,31]
[312661992,1706141481407,-1084.63,0.00050136,31]
[312661993,1706141481417,-500.0,0.00050136,31]
[312661994,1706141481426,-500.0,0.00050136,31]
[312661995,1706141481435,-500.0,0.00050136,31]
[312661996,1706141481445,-500.0,0.00050136,31]
[312661997,1706141481454,-500.0,0.00050136,31]
[312661998,1706141481468,-500.0,0.00050136,31]
[312661999,1706141481478,-500.0,0.00050136,31]
[312662000,1706141481488,-500.0,0.00050136,31]
[312662001,1706141481498,-500.0,0.00050136,31]
[312662002,1706141481508,-500.0,0.00050136,31]
[312662003,1706141481518,-500.0,0.00050136,31]
[312662004,1706141481528,-500.0,0.00050136,31]
[312662005,1706141481538,-500.0,0.00050136,31]
[312662006,1706141481548,-500.0,0.00050136,31]
[312662007,1706141481558,-500.0,0.00050136,31]
[312662008,1706141481568,-500.0,0.00050136,60]
[312662009,1706141481578,-500.0,0.00050136,31]
[312662010,1706141481587,-500.0,0.00050136,31]
[312662011,1706141481597,-500.0,0.00050136,31]
[312662012,1706141481607,-563.82,0.00050136,31]
[312662013,1706141481617,-500.0,0.00050136,31]
[312662014,1706141481626,-500.0,0.00050136,31]
[312662015,1706141481636,-500.0,0.00050136,31]
[312662016,1706141481646,-1246.63,0.00050136,7]
[312662017,1706141481656,-500.0,0.00050136,31]
[312662018,1706141481665,-500.0,0.00050136,31]
[312662019,1706141481675,-500.0,0.00050136,31]
[312662020,1706141481685,-669.25,0.00050136,20]
[312662021,1706141481695,-500.0,0.00050136,31]
[312662022,1706141481704,-500.0,0.00050136,31]
[312662023,1706141481716,-500.0,0.00050136,31]
[312662024,1706141481734,-500.0,0.00050136,31]
[312662025,1706141481744,-500.0,0.00050136,31]
[312662026,1706141481754,-500.0,0.00050136,31]
[312662027,1706141481763,-500.0,0.00050136,31]
[312662028,1706141481774,-500.0,0.00050136,31]
[312662029,1706141481783,-500.0,0.00050136,31]
[312662030,1706141481792,-500.0,0.00050136,31]
[312662031,1706141481801,-500.0,0.00050136,31]
[312662032,1706141481812,-500.0,0.00050136,31]
[312662033,1706141481822,-500.0,0.00050136,31]
[312662034,1706141481833,-500.0,0.00050136,31]
[312662035,1706141481843,-500.0,0.00050136,31]
[312662036,1706141481853,-500.0,0.00050136,31]
[312662037,1706141481863,-500.0,0.00050136,31]
[312662038,1706141481873,-500.0,0.00050136,31]
[312662039,1706141481883,-500.0,0.00050136,31]
[312662040,1706141481892,-500.0,0.00050136,31]
[312662041,1706141481903,-500.0,0.00050136,31]
[312662042,1706141481913,-523.88,0.00050136,31]
[312662043,1706141481922,-500.0,0.00050136,14]
[312662044,1706141481931,-500.0,0.00050136,31]
[312662045,1706141481940,-500.0,0.00050136,31]
[312662046,1706141481950,-500.0,0.00050136,31]
[312662047,1706141481959,-500.0,0.00050136,31]
[312662048,1706141481969,-500.0,0.00050136,31]
[312662049,1706141481979,-500.0,0.00050136,31]
[312662050,1706141481988,-500.0,0.00050136,31]
[312662051,1706141481998,-1233.91,0.00050136,7]
[312662052,1706141482008,-526.57,0.00050136,31]
[312662053,1706141482017,-1157.14,0.00050136,31]
[312662054,1706141482027,-500.0,0.00050136,31]
[312662055,1706141482037,-500.0,0.00050136,31]
[312662056,1706141482046,-500.0,0.00050136,31]
[312662057,1706141482057,-500.0,0.00050136,31]
[312662058,1706141482067,-500.0,0.00050136,31]
[312662059,1706141482076,-500.0,0.00050136,31]
[312662060,1706141482086,-500.0,0.00050136,31]
[312662061,1706141482095,-500.0,0.00050136,31]
[312662062,1706141482105,-594.98,0.00050136,31]
[312662063,1706141482115,-500.0,0.00050136,31]
[312662064,1706141482124,-4118.15,0.00050136,15]
[312662065,1706141482134,-547.47278953,0.00050136,31]
[312662066,1706141482143,-500.0,0.00050136,31]
[312662067,1706141482153,-500.0,0.00050136,31]
[312662068,1706141482162,-500.0,0.00050136,31]
[312662069,1706141482172,-500.0,0.00050136,31]
[312662070,1706141482182,-500.0,0.00050136,31]
[312662071,1706141482191,-621.48,0.00050136,31]
[312662072,1706141482200,-500.0,0.00050136,31]
[312662073,1706141482210,-500.0,0.00050136,31]
[312662074,1706141482219,-1968.51,0.00050136,31]
[312662075,1706141482229,-500.0,0.00050136,31]
[312662076,1706141482239,-500.0,0.00050136,31]
[312662077,1706141482248,-500.0,0.00050136,31]
[312662078,1706141482258,-500.0,0.00050136,31]
[312662079,1706141482267,-500.0,0.00050136,31]
[312662080,1706141482278,-500.0,0.00050136,31]
[312662081,1706141482287,-500.0,0.00050136,31]
[312662082,1706141482299,-500.0,0.00050136,31]
[312662083,1706141482309,-937.73,0.00050136,2]
[312662084,1706141482318,-500.0,0.00050136,31]
[312662085,1706141482328,-500.0,0.00050136,31]
[312662086,1706141482338,-500.0,0.00050136,31]
[312662087,1706141482347,-4141.1,0.00050136,31]
[312662088,1706141482357,-500.0,0.00050136,31]
[312662089,1706141482367,-500.0,0.00050136,31]
[312662090,1706141482378,-500.0,0.00050136,31]
[312662091,1706141482387,-500.0,0.00050136,31]
[312662092,1706141482397,-500.0,0.00050136,31]
[312662093,1706141482406,-500.0,0.00050136,31]
[312662094,1706141482415,-500.0,0.00050136,31]
[312662095,1706141482425,-500.0,0.00050136,31]
[312662096,1706141482435,-500.0,0.00050136,31]
[312662097,1706141482444,-569.11149122,0.00050136,31]
[312662098,1706141482453,-500.0,0.00050136,31]
[312662099,1706141482463,-500.0,0.00050136,31]
[312662100,1706141482472,-728.06,0.00050136,31]
[312662101,1706141482481,-500.0,0.00050136,31]
[312662102,1706141482491,-500.0,0.00050136,31]
[312662103,1706141482500,-500.0,0.00050136,31]
[312662104,1706141482509,-973.03,0.00050136,2]
[312662105,1706141482519,-500.0,0.00050136,31]
[312662106,1706141482529,-500.0,0.00050136,31]
[312662107,1706141482538,-500.0,0.00050136,31]
[312662108,1706141482547,-500.0,0.00050136,31]
[312662109,1706141482557,-500.0,0.00050136,31]
[312662110,1706141482567,-500.0,0.00050136,31]
[312662111,1706141482576,-1697.01,0.00050136,31]
[312662112,1706141482586,-500.0,0.00050136,31]
[312662113,1706141482595,-500.0,0.00050136,31]
[312662114,1706141482604,-500.0,0.00050136,31]
[312662115,1706141482613,-500.0,0.00050136,31]
[312662116,1706141482622,-556.66,0.00050136,31]
[312662117,1706141482632,-500.0,0.00050136,31]
[312662118,1706141482641,-500.0,0.00050136,31]
[312662119,1706141482650,-681.8,0.00050136,31]